bitfinex-derivatives/quotes_BTCF0:USTF0_20240910
["timestamp","ask_amount","ask_price","bid_price","bid_amount"]
[1725933158540,0.22435775,56815.0,56814.0,0.028]
[1725933167438,0.13636675,56815.0,56814.0,0.115993]
[1725933168039,0.13636675,56815.0,56814.0,0.20373798]
[1725933168442,0.13636675,56815.0,56814.0,0.31844593]
[1725933169555,0.13636675,56815.0,56814.0,0.23070095]
[1725933173047,0.13636675,56815.0,56814.0,0.14270795]
[1725933174849,0.17983281,56815.0,56814.0,0.115993]
[1725933175354,0.30164836,56815.0,56814.0,0.115993]
[1725933176652,0.36951898,56815.0,56814.0,0.115993]
[1725933177550,0.14231021,56815.0,56814.0,0.115993]
[1725933177757,0.28152798,56815.0,56814.0,0.115993]
[1725933177954,0.14231021,56815.0,56814.0,0.115993]
[1725933178555,0.14231021,56815.0,56814.0,0.275993]
[1725933178556,0.0940899,56815.0,56814.0,0.275993]
[1725933178751,0.12227705,56815.0,56814.0,0.188]
[1725933179056,0.09447743,56815.0,56814.0,0.275993]
[1725933179443,0.16598516,56815.0,56814.0,0.115993]
[1725933179759,0.18245953,56815.0,56814.0,0.115993]
[1725933180144,0.13171015,56815.0,56814.0,0.115993]
[1725933180345,0.1800859,56815.0,56814.0,0.115993]
[1725933180655,0.0920949,56815.0,56814.0,0.115993]
[1725933180852,0.1800859,56815.0,56814.0,0.115993]
[1725933181757,0.0920949,56815.0,56814.0,0.115993]
[1725933182456,0.1800859,56815.0,56814.0,0.115993]
[1725933182650,0.13636675,56815.0,56814.0,0.23080746]
[1725933182851,0.13636675,56815.0,56814.0,0.36761153]
[1725933184350,0.04837575,56815.0,56814.0,0.36761153]
[1725933184553,0.04837575,56815.0,56814.0,0.36761044]
[1725933185356,0.04837575,56815.0,56814.0,0.36753906]
[1725933185559,0.04837575,56815.0,56814.0,0.23078448]
[1725933188062,0.04837575,56815.0,56814.0,0.23063629]
[1725933188660,0.04837575,56815.0,56814.0,0.33615067]
[1725933188859,0.04837575,56815.0,56814.0,0.23063629]
[1725933189258,0.04837575,56815.0,56814.0,0.33615007]
[1725933189464,0.13636675,56815.0,56814.0,0.33615277]
[1725933190676,0.13636675,56815.0,56814.0,0.23063629]
[1725933193258,0.13636675,56815.0,56814.0,0.3674407]
[1725933193659,0.13636675,56815.0,56814.0,0.3674082]
[1725933195164,0.07473908,56815.0,56814.0,0.3674082]
[1725933195866,0.07473908,56815.0,56814.0,0.23063629]
[1725933196662,0.07473908,56815.0,56814.0,0.36698328]
[1725933196868,0.07473908,56815.0,56814.0,0.23063629]
[1725933197769,0.11866451,56815.0,56814.0,0.115993]
[1725933198770,0.24092937,56815.0,56814.0,0.115993]
[1725933198964,0.04392543,56815.0,56814.0,0.291979]
[1725933199165,0.0041,56824.0,56823.0,0.087979]
[1725933199368,0.00232,56828.0,56827.0,0.087973]
[1725933199671,0.12636486,56836.0,56835.0,0.08796]
[1725933199871,0.12226486,56836.0,56835.0,0.18836]
[1725933200068,0.1399,56838.0,56836.0,0.087959]
[1725933200265,0.1399,56838.0,56837.0,0.0004]
[1725933200570,0.1399,56838.0,56836.0,0.087959]
[1725933200571,0.0705,56838.0,56836.0,0.087959]
[1725933200774,0.0004,56837.0,56836.0,0.087959]
[1725933201274,0.0004,56837.0,56836.0,0.088959]
[1725933202369,0.0004,56837.0,56836.0,0.089959]
[1725933202666,0.0004,56837.0,56836.0,0.088959]
[1725933202865,0.0054,56837.0,56836.0,0.089959]
[1725933204073,0.093357,56837.0,56836.0,0.002]
[1725933204270,1.27389082,56837.0,56836.0,1e-08]
[1725933204664,1.221197,56837.0,56836.0,1e-08]
[1725933205359,0.621197,56837.0,56836.0,1e-08]
[1725933205972,0.093357,56837.0,56836.0,1e-08]
[1725933206368,0.621197,56837.0,56836.0,1e-08]
[1725933206569,0.093357,56837.0,56836.0,1e-08]
[1725933207276,1.221197,56837.0,56836.0,1e-08]
[1725933207672,0.093357,56837.0,56836.0,1e-08]
[1725933207867,0.093357,56837.0,56836.0,0.05278329]
[1725933208775,0.093357,56837.0,56836.0,1e-08]
[1725933209780,0.093357,56837.0,56836.0,0.08795901]
[1725933210972,0.093357,56837.0,56836.0,1e-08]
[1725933212674,0.19103,56837.0,56836.0,1e-08]
[1725933212988,0.278987,56837.0,56836.0,1e-08]
[1725933216185,0.087963,56834.0,56832.0,0.04367271]
[1725933216399,0.087963,56834.0,56827.0,0.16]
[1725933216400,0.097673,56833.0,56827.0,0.16]
[1725933216587,0.12186456,56830.0,56827.0,0.16]
[1725933216791,0.0004,56828.0,56827.0,0.247973]
[1725933216979,0.04559708,56828.0,56827.0,0.247973]
[1725933217179,0.04519708,56828.0,56827.0,0.247973]
[1725933217786,0.087967,56831.0,56829.0,0.087968]
[1725933217977,0.04503536,56830.0,56829.0,0.08797]
[1725933219184,0.04603536,56830.0,56829.0,0.08797]
[1725933219686,0.001,56830.0,56829.0,0.08797]
[1725933219879,0.001,56830.0,56829.0,0.15877]
[1725933220786,0.002,56830.0,56829.0,0.15877]
[1725933223886,0.0004,56833.0,56832.0,0.087965]
[1725933224088,0.0041,56839.0,56838.0,0.087956]
[1725933224282,0.08795,56842.0,56838.0,0.1604]
[1725933224485,0.08795,56842.0,56841.0,0.0004]
[1725933224685,0.08795,56842.0,56839.0,0.0703]
[1725933224886,0.0004,56840.0,56839.0,0.158254]
[1725933225290,0.087951,56841.0,56839.0,0.158254]
[1725933225488,0.087951,56841.0,56840.0,0.0004]
[1725933226287,0.004,56842.0,56841.0,0.087951]
[1725933226491,0.006,56842.0,56841.0,0.088351]
[1725933226693,0.006,56842.0,56841.0,0.3437576]
[1725933226995,0.087942,56847.0,56845.0,0.087944]
[1725933227295,0.087942,56847.0,56846.0,0.33608439]
[1725933227495,0.0041,56854.0,56846.0,0.27340283]
[1725933227695,0.10012824,56855.0,56853.0,0.07059894]
[1725933227886,0.10012824,56855.0,56854.0,0.0004]
[1725933228088,0.10012824,56855.0,56853.0,0.0004]
[1725933228291,0.0004,56854.0,56853.0,0.088332]
[1725933228694,0.0024,56854.0,56853.0,0.0004]
[1725933229597,0.0024,56854.0,56853.0,0.0014]
[1725933230287,0.090331,56854.0,56853.0,0.0014]
[1725933230492,0.090331,56854.0,56853.0,0.0024]
[1725933234894,0.16070671,56854.0,56846.0,0.09391598]
[1725933235103,0.0004,56847.0,56846.0,0.09391598]
[1725933235296,0.15870671,56847.0,56846.0,0.18185898]
[1725933236102,0.15870671,56847.0,56846.0,0.18285898]
[1725933236303,0.08368722,56847.0,56846.0,1.39852198]
[1725933237198,0.08368722,56847.0,56846.0,1.48746498]
[1725933237397,0.27513438,56847.0,56846.0,1.48746498]
[1725933237601,0.27513438,56847.0,56846.0,1.39952198]
[1725933237907,0.27513438,56847.0,56846.0,1.39852198]
[1725933237908,0.08368722,56847.0,56846.0,1.39852198]
[1725933238200,0.08368722,56847.0,56846.0,1.47202198]
[1725933238799,0.08368722,56847.0,56846.0,1.47102198]
[1725933239003,0.08568722,56847.0,56846.0,1.47202198]
[1725933239505,0.08668722,56847.0,56846.0,1.47202198]
[1725933239707,0.2780334,56847.0,56846.0,1.47202198]
[1725933240507,0.08668722,56847.0,56846.0,1.47202198]
[1725933241100,0.08668722,56847.0,56846.0,1.55996498]
[1725933241304,0.08668722,56847.0,56846.0,1.47202198]
[1725933241498,0.20054883,56847.0,56846.0,1.47202198]
[1725933241700,0.08668722,56847.0,56846.0,1.47202198]
[1725933243009,0.003,56847.0,56846.0,1.47202198]
[1725933243222,0.002,56847.0,56846.0,1.47102198]
[1725933243711,0.01669824,56855.0,56854.0,0.087931]
[1725933244010,0.01259824,56855.0,56854.0,0.247931]
[1725933244210,0.01259824,56855.0,56854.0,0.25734604]
[1725933245601,0.01259824,56855.0,56854.0,0.25834604]
[1725933246411,0.01259824,56855.0,56854.0,0.29075902]
[1725933246712,0.01359824,56855.0,56854.0,0.29175902]
[1725933249915,0.21333552,56855.0,56854.0,0.29175902]
[1725933250207,0.27048226,56855.0,56854.0,0.15100005]
[1725933250509,0.16415498,56855.0,56854.0,0.20382802]
[1725933250702,0.16415498,56855.0,56854.0,0.29175902]
[1725933251012,0.21346232,56855.0,56854.0,0.29175902]
[1725933251210,0.26363696,56855.0,56854.0,0.29175902]
[1725933251604,0.3207837,56855.0,56854.0,0.29175902]
[1725933252107,0.32075789,56855.0,56854.0,0.37969002]
[1725933252408,0.16415498,56855.0,56854.0,0.37969002]
[1725933252714,0.17390317,56856.0,56855.0,0.087929]
[1725933252914,0.17390317,56856.0,56855.0,0.088729]
[1725933252915,0.09800761,56856.0,56855.0,0.088729]
[1725933253211,0.09800761,56856.0,56855.0,0.176658]
[1725933253406,0.04220657,56856.0,56855.0,0.264587]
[1725933253709,0.1567412,56858.0,56855.0,0.264587]
[1725933253710,0.1567412,56860.0,56855.0,1.12844]
[1725933253913,0.17390317,56864.0,56863.0,0.087917]
[1725933254112,0.09533237,56864.0,56863.0,0.247917]
[1725933254413,0.25210415,56864.0,56863.0,0.248717]
[1725933254614,0.09533237,56864.0,56863.0,0.247917]
[1725933255506,0.04105449,56864.0,56863.0,0.247917]
[1725933255702,0.19780217,56864.0,56863.0,0.247917]
[1725933255904,0.09533237,56864.0,56863.0,0.247917]
[1725933257311,0.25208438,56864.0,56863.0,0.28011452]
[1725933257506,0.09533237,56864.0,56863.0,0.28011452]
[1725933257911,0.0742,56870.0,56867.0,0.08791]
[1725933258225,0.0742,56870.0,56869.0,0.0008]
[1725933258807,1.377532,56870.0,56869.0,0.0008]
[1725933259013,0.16,56861.0,56855.0,0.3259]
[1725933259216,0.087928,56856.0,56855.0,0.3218]
[1725933259617,0.175856,56856.0,56855.0,0.3218]
[1725933259808,0.087928,56856.0,56855.0,0.3218]
[1725933260118,0.159728,56856.0,56855.0,0.3218]
[1725933260608,0.159728,56856.0,56855.0,0.3248]
[1725933260809,0.159728,56856.0,56855.0,0.3278]
[1725933263117,0.159728,56856.0,56855.0,0.006]
[1725933264919,0.26421868,56856.0,56855.0,0.006]
[1725933265114,0.159728,56856.0,56855.0,0.006]
[1725933266518,0.26423118,56856.0,56855.0,0.006]
[1725933266719,0.159728,56856.0,56855.0,0.006]
[1725933269925,0.159728,56856.0,56855.0,0.093929]
[1725933272923,0.11573815,56856.0,56855.0,0.093929]
[1725933273527,0.11573815,56856.0,56855.0,0.006]
[1725933275825,0.11573815,56856.0,56855.0,0.093929]
[1725933276528,0.11573815,56856.0,56855.0,0.006]
[1725933278322,0.11573815,56856.0,56852.0,0.08774868]
[1725933278323,0.087932,56853.0,56852.0,0.08774868]
[1725933278532,0.087937,56850.0,56847.0,0.08774868]
[1725933278735,0.08794,56848.0,56847.0,0.08774868]
[1725933278936,0.3085,56849.0,56845.0,0.17569368]
[1725933279234,0.394239,56849.0,56848.0,0.0008]
[1725933279437,1.082178,56849.0,56848.0,0.0008]
[1725933279730,1.609898,56849.0,56848.0,0.0008]
[1725933280135,0.52772,56848.0,56845.0,0.05260221]
[1725933280331,0.17589,56845.0,56844.0,0.05260221]
[1725933280529,0.17589,56845.0,56843.0,0.05260221]
[1725933280530,0.087946,56844.0,56843.0,0.05260221]
[1725933280747,0.157846,56844.0,56843.0,0.05260221]
[1725933281036,0.685606,56844.0,56843.0,0.05260221]
[1725933281238,0.087948,56843.0,56842.0,0.05260221]
[1725933282122,1.303656,56843.0,56842.0,0.05260221]
[1725933282330,0.10122124,56844.0,56841.0,0.0701298]
[1725933282528,0.087948,56843.0,56842.0,0.0701298]
[1725933282734,0.087948,56843.0,56842.0,0.0781298]
[1725933283233,0.087948,56843.0,56842.0,0.008]
[1725933284034,0.088948,56843.0,56842.0,0.016]
[1725933284433,0.248948,56843.0,56842.0,0.016]
[1725933285333,0.248948,56843.0,56842.0,0.0861298]
[1725933285831,0.336896,56843.0,56842.0,0.0861298]
[1725933286423,0.336896,56843.0,56833.0,0.0309791]
[1725933286424,1.464656,56843.0,56833.0,0.0309791]
[1725933286636,0.16,56836.0,56834.0,0.20615543]
[1725933286833,0.16,56835.0,56833.0,0.08761071]
[1725933287137,0.087962,56834.0,56833.0,0.08761071]
[1725933287332,0.087962,56834.0,56833.0,0.2056622]
[1725933287730,0.087962,56834.0,56833.0,0.11805149]
[1725933287731,0.088362,56834.0,56833.0,0.11805149]
[1725933287935,0.088362,56834.0,56833.0,0.087963]
[1725933288130,0.088362,56834.0,56833.0,0.100963]
[1725933288340,0.088362,56834.0,56833.0,0.15354237]
[1725933288639,0.088362,56834.0,56833.0,0.16754237]
[1725933289632,0.089362,56834.0,56833.0,0.15954237]
[1725933290337,0.089362,56834.0,56833.0,0.106963]
[1725933295042,0.089362,56834.0,56833.0,0.31267858]
[1725933295436,0.089362,56834.0,56833.0,0.22471558]
[1725933295637,0.089362,56834.0,56833.0,0.22472219]
[1725933296344,0.089362,56834.0,56833.0,0.10663229]
[1725933296847,0.089362,56834.0,56833.0,0.31268257]
[1725933297737,0.089362,56834.0,56833.0,0.10663229]
[1725933297948,0.089362,56834.0,56833.0,0.22470136]
[1725933298136,0.089362,56834.0,56833.0,0.31266436]
[1725933300047,0.089362,56834.0,56833.0,0.019]
[1725933303652,0.089362,56834.0,56833.0,0.106963]
[1725933306255,0.089362,56834.0,56833.0,0.15955294]
[1725933307144,0.089362,56834.0,56833.0,0.106963]
[1725933309150,0.089362,56834.0,56833.0,0.019]
[1725933309556,0.337324,56834.0,56833.0,0.019]
[1725933309747,0.337324,56834.0,56833.0,0.07176556]
[1725933310249,0.277324,56834.0,56833.0,0.27908314]
[1725933310649,0.277324,56834.0,56833.0,0.27908742]
[1725933310952,0.277324,56834.0,56833.0,0.13765314]
[1725933312148,0.337324,56834.0,56833.0,0.13765314]
[1725933314455,0.089362,56834.0,56833.0,0.13765314]
[1725933315157,0.089362,56834.0,56833.0,0.36554521]
[1725933318454,0.089362,56834.0,56833.0,0.24701528]
[1725933318764,0.089362,56834.0,56833.0,0.36451258]
[1725933320054,0.0014,56834.0,56833.0,0.36451258]
[1725933320258,0.087957,56837.0,56836.0,0.087959]
[1725933320455,0.087957,56837.0,56836.0,0.34550858]
[1725933320662,0.087957,56837.0,56836.0,0.34590858]
[1725933321361,0.04395193,56837.0,56836.0,0.34590858]
[1725933321558,0.04495193,56837.0,56836.0,0.27194958]
[1725933321757,0.20595193,56837.0,56836.0,0.27694958]
[1725933322968,0.20595193,56837.0,56836.0,0.1368973]
[1725933323662,0.20595193,56837.0,56836.0,0.13723968]
[1725933324468,0.23756706,56837.0,56836.0,0.13723968]
[1725933325161,0.34188231,56837.0,56836.0,0.0194]
[1725933325869,0.34231914,56837.0,56836.0,0.0194]
[1725933326061,0.18231914,56837.0,56836.0,0.107359]
[1725933326569,0.15070401,56837.0,56836.0,0.107359]
[1725933326870,0.002,56837.0,56836.0,0.107359]
[1725933327166,0.002,56837.0,56836.0,0.16011471]
[1725933328264,0.002,56837.0,56836.0,0.107359]
[1725933331665,0.002,56837.0,56836.0,0.13959842]
[1725933332174,0.002,56837.0,56836.0,0.39765099]
[1725933333570,0.002,56837.0,56836.0,0.39762563]
[1725933335076,0.089957,56837.0,56836.0,0.1371152]
[1725933335264,0.089957,56837.0,56836.0,0.2250742]
[1725933340275,0.089957,56837.0,56836.0,0.107359]
[1725933341274,0.337914,56837.0,56836.0,0.0194]
[1725933341775,0.337914,56837.0,56836.0,0.07212805]
[1725933342567,0.177914,56837.0,56836.0,0.07212805]
[1725933342776,0.177914,56837.0,56836.0,0.0194]
[1725933344776,0.602,56837.0,56827.0,0.08786281]
[1725933344978,0.602,56837.0,56825.0,0.05273584]
[1725933344979,0.1604,56828.0,56825.0,0.05273584]
[1725933345277,0.1604,56828.0,56819.0,0.09196281]
[1725933345278,0.08798,56822.0,56821.0,0.05273584]
[1725933345482,0.08838,56822.0,56821.0,0.05273584]
[1725933346069,0.08838,56822.0,56819.0,0.07031285]
[1725933346070,0.087983,56821.0,56819.0,0.07031285]
[1725933346276,0.0004,56822.0,56818.0,0.15829785]
[1725933346277,0.088384,56820.0,56818.0,0.15829785]
[1725933346476,0.0004,56819.0,56818.0,0.15829785]
[1725933346674,0.088384,56820.0,56818.0,0.15829785]
[1725933346880,0.088384,56820.0,56819.0,0.0004]
[1725933347178,0.088384,56820.0,56819.0,0.11824032]
[1725933347677,0.11979498,56820.0,56819.0,0.11824032]
[1725933348290,0.12079498,56820.0,56819.0,0.20596323]
[1725933348482,0.36877998,56820.0,56819.0,0.0004]
[1725933348680,0.36877998,56820.0,56819.0,0.0530396]
[1725933348877,0.36877998,56820.0,56819.0,0.0004]
[1725933349870,0.36977998,56820.0,56819.0,0.0034]
[1725933352681,0.45776498,56820.0,56819.0,0.0034]
[1725933357578,0.98576498,56820.0,56819.0,1e-06]
[1725933357784,1.58576498,56820.0,56819.0,1e-06]
[1725933358790,1.58476498,56820.0,56819.0,1e-06]
[1725933359090,1.58576498,56820.0,56819.0,0.002]
[1725933361988,1.42576498,56820.0,56819.0,0.002]
[1725933362191,1.58576498,56820.0,56819.0,0.002]
[1725933362486,0.45776498,56820.0,56819.0,0.002]
[1725933363691,0.12179498,56820.0,56819.0,0.002]
[1725933363893,0.0024,56820.0,56819.0,0.162]
[1725933364089,0.0004,56828.0,56819.0,0.23218706]
[1725933364090,0.087978,56824.0,56819.0,0.23218706]
[1725933364288,0.087978,56824.0,56823.0,0.21247831]
[1725933364491,0.087978,56824.0,56823.0,0.21287831]
[1725933364892,0.087978,56824.0,56823.0,0.30085731]
[1725933365092,0.0004,56828.0,56825.0,0.087976]
[1725933365294,0.087971,56828.0,56827.0,0.1604]
[1725933366297,0.087966,56832.0,56827.0,0.1604]
[1725933366593,0.087966,56832.0,56831.0,0.1604]
[1725933366790,0.087966,56832.0,56831.0,0.0004]
[1725933367293,0.087966,56832.0,56831.0,0.07058706]
[1725933367798,0.091966,56832.0,56831.0,0.07058706]
[1725933368187,0.087966,56832.0,56831.0,0.07058706]
[1725933368391,0.088966,56832.0,56831.0,0.07358706]
[1725933368791,0.092966,56832.0,56831.0,0.07358706]
[1725933369193,0.092966,56832.0,56831.0,0.0034]
[1725933369403,0.092966,56832.0,56831.0,0.07343155]
[1725933369695,0.089966,56832.0,56831.0,0.07543155]
[1725933369894,0.089966,56832.0,56831.0,0.0044]
[1725933370696,0.249966,56832.0,56831.0,0.0044]
[1725933371001,0.249966,56832.0,56831.0,0.05693662]
[1725933371192,0.249966,56832.0,56831.0,0.0044]
[1725933371193,0.337932,56832.0,56831.0,0.0044]
[1725933371696,0.865812,56832.0,56831.0,0.0044]
[1725933371889,1.465812,56832.0,56831.0,0.0044]
[1725933372591,1.464812,56832.0,56831.0,0.0024]
[1725933372795,1.465812,56832.0,56831.0,0.0044]
[1725933372998,0.865812,56832.0,56831.0,0.0044]
[1725933373195,0.337932,56832.0,56831.0,0.0044]
[1725933373590,0.337932,56832.0,56831.0,0.0004]
[1725933373591,0.336932,56832.0,56831.0,0.0004]
[1725933377288,0.47537475,56832.0,56831.0,0.00022496]
[1725933378599,0.47537475,56832.0,56823.0,0.087978]
[1725933378600,0.087977,56824.0,56823.0,0.087978]
[1725933378803,0.22748802,56824.0,56823.0,0.087978]
[1725933379105,0.31192919,56824.0,56823.0,0.087978]
[1725933380006,0.31292919,56824.0,56823.0,0.089978]
[1725933380206,0.31392919,56824.0,56823.0,0.091978]
[1725933381404,0.0414742,56824.0,56823.0,0.091978]
[1725933381603,0.0415851,56824.0,56823.0,0.091978]
[1725933383605,0.0415851,56824.0,56823.0,0.004]
[1725933383606,0.22948802,56824.0,56823.0,0.004]
[1725933383798,0.47410622,56824.0,56823.0,0.004]
[1725933383994,0.3349952,56824.0,56823.0,0.004]
[1725933385307,0.250377,56824.0,56823.0,0.004]
[1725933388208,0.250377,56824.0,56823.0,0.2100317]
[1725933389210,0.250377,56824.0,56823.0,0.12230879]
[1725933390502,0.250377,56824.0,56823.0,0.004]
[1725933390708,0.250377,56824.0,56823.0,0.1223491]
[1725933392411,0.33453143,56824.0,56823.0,0.004]
[1725933393610,0.17453143,56824.0,56823.0,0.004]
[1725933395205,0.33453143,56824.0,56823.0,0.004]
[1725933395609,0.17453143,56824.0,56823.0,0.004]
[1725933396010,0.22853149,56824.0,56823.0,0.004]
[1725933396812,0.22847593,56824.0,56823.0,0.004]
[1725933397407,0.38497583,56824.0,56823.0,0.004]
[1725933397912,0.29699883,56824.0,56823.0,0.251979]
[1725933398107,0.17604878,56827.0,56824.0,0.52796]
[1725933398108,0.12425116,56827.0,56824.0,0.52796]
[1725933398307,0.10466358,56826.0,56824.0,1.215937]
[1725933398502,0.12209116,56835.0,56824.0,1.215937]
[1725933398503,0.10464151,56829.0,56828.0,0.087971]
[1725933398703,0.12209116,56838.0,56828.0,0.248371]
[1725933398704,0.0041,56837.0,56828.0,0.248371]
[1725933398914,0.12209116,56838.0,56836.0,0.0004]
[1725933399112,0.12209116,56838.0,56837.0,0.088357]
[1725933399317,0.1395174,56841.0,56840.0,0.087953]
[1725933399514,0.26183078,56847.0,56840.0,0.087953]
[1725933399515,0.1395174,56842.0,56840.0,0.0004]
[1725933399720,0.1395174,56843.0,56842.0,0.087949]
[1725933399911,0.1395174,56843.0,56842.0,0.088349]
[1725933400114,0.00257504,56848.0,56847.0,0.087942]
[1725933400416,0.12205814,56850.0,56849.0,0.087939]
[1725933400612,0.32951278,56859.0,56849.0,0.28096893]
[1725933400613,0.0041,56858.0,56849.0,0.28096893]
[1725933400826,0.03118164,56858.0,56857.0,0.0008]
[1725933401016,0.0677,56859.0,56855.0,0.08770787]
[1725933401215,0.0677,56859.0,56858.0,0.0709662]
[1725933401417,0.0677,56859.0,56858.0,0.0008]
[1725933401604,0.154018,56863.0,56858.0,0.0008]
[1725933401605,0.0661,56863.0,56858.0,0.23088713]
[1725933401808,0.0677,56865.0,56863.0,0.087916]
[1725933402014,0.2365,56873.0,56864.0,0.248715]
[1725933402015,0.0041,56872.0,56864.0,0.248715]
[1725933402221,0.0677,56872.0,56871.0,0.05335605]
[1725933402418,0.0677,56872.0,56871.0,0.05255605]
[1725933402720,0.0677,56872.0,56870.0,0.07007473]
[1725933403415,0.0041,56879.0,56868.0,0.24770787]
[1725933403416,0.03183429,56877.0,56868.0,0.24770787]
[1725933403713,0.014,56872.0,56868.0,0.24770787]
[1725933403915,0.014,56872.0,56869.0,0.08770787]
[1725933404120,0.028,56872.0,56871.0,0.001]
[1725933404715,0.028,56872.0,56871.0,0.088904]
[1725933405021,0.026,56872.0,56871.0,0.087904]
[1725933405813,0.012,56872.0,56871.0,0.087904]
[1725933406212,0.100895,56877.0,56871.0,0.087904]
[1725933406413,0.026,56872.0,56871.0,0.14134354]
[1725933406608,0.026,56872.0,56871.0,0.088904]
[1725933408017,0.13053581,56872.0,56871.0,0.088904]
[1725933408519,0.014,56872.0,56871.0,0.088904]
[1725933409320,0.028,56872.0,56871.0,0.088904]
[1725933415417,0.16351607,56872.0,56871.0,0.088904]
[1725933415727,0.16351607,56872.0,56871.0,0.16]
[1725933416123,0.16351607,56872.0,56871.0,0.247904]
[1725933416524,0.31903378,56872.0,56871.0,0.247904]
[1725933417023,0.10656353,56872.0,56871.0,0.247904]
[1725933417730,0.10656353,56872.0,56871.0,0.2797118]
[1725933417925,0.19146653,56872.0,56871.0,0.2807118]
[1725933418114,0.0597426,56872.0,56871.0,0.1207118]
[1725933419028,0.11369513,56872.0,56871.0,0.23318475]
[1725933419218,0.23363138,56872.0,56871.0,0.23318475]
[1725933419527,0.15673897,56872.0,56871.0,0.23318475]
[1725933420818,0.15354175,56872.0,56871.0,0.23318475]
[1725933421428,0.32743053,56872.0,56871.0,0.23318475]
[1725933422524,0.022,56872.0,56871.0,0.23318475]
[1725933424727,0.022,56872.0,56871.0,0.07318475]
[1725933425328,0.022,56872.0,56871.0,0.23318475]
[1725933429027,0.022,56872.0,56871.0,0.32108975]
[1725933429233,0.087892,56880.0,56879.0,0.087892]
[1725933429541,0.0697,56882.0,56881.0,0.087889]
[1725933429733,0.157588,56882.0,56881.0,0.088689]
[1725933429933,0.157588,56882.0,56881.0,0.087889]
[1725933430532,0.21621054,56882.0,56881.0,0.247889]
[1725933432161,0.21621054,56882.0,56881.0,0.087889]
[1725933432548,0.29009854,56882.0,56881.0,0.001]
[1725933432753,0.29009854,56882.0,56881.0,0.00060582]
[1725933433261,0.29009854,56882.0,56879.0,0.088692]
[1725933433262,0.087891,56880.0,56879.0,0.088692]
[1725933433458,0.16645751,56880.0,56879.0,0.088692]
[1725933433658,0.22040154,56880.0,56879.0,0.088692]
[1725933434253,0.13251054,56880.0,56879.0,0.088692]
[1725933434648,0.13251054,56880.0,56879.0,0.090692]
[1725933434855,0.078604,56880.0,56879.0,0.090692]
[1725933435051,0.1325507,56880.0,56879.0,0.090692]
[1725933435458,0.1325507,56880.0,56879.0,0.091692]
[1725933435767,0.1325507,56880.0,56879.0,0.094692]
[1725933435963,0.2204417,56880.0,56879.0,0.0038]
[1725933436261,0.2204417,56880.0,56879.0,0.0078]
[1725933437269,0.2204417,56880.0,56879.0,0.0048]
[1725933437468,0.2204417,56880.0,56879.0,0.0068]
[1725933437769,0.087891,56880.0,56879.0,0.092692]
[1725933438164,0.11975783,56880.0,56879.0,0.092692]
[1725933438567,0.087891,56880.0,56879.0,0.090692]
[1725933438866,0.087891,56880.0,56879.0,0.14313154]
[1725933439369,0.087891,56880.0,56879.0,0.14113154]
[1725933443072,0.087891,56880.0,56879.0,0.088692]
[1725933443272,0.087891,56880.0,56879.0,0.14136044]
[1725933444359,0.087891,56880.0,56879.0,0.088692]
[1725933444562,0.22039572,56880.0,56879.0,0.088692]
[1725933444771,0.087891,56880.0,56879.0,0.088692]
[1725933444965,0.22039509,56880.0,56879.0,0.088692]
[1725933447466,0.22039509,56880.0,56879.0,0.0008]
[1725933448268,0.22039509,56880.0,56879.0,0.088692]
[1725933448871,0.22040179,56880.0,56879.0,0.088692]
[1725933450773,0.22048101,56880.0,56879.0,0.088692]
[1725933450968,0.22048101,56880.0,56876.0,0.16]
[1725933451174,0.13259001,56879.0,56876.0,0.16]
[1725933451374,0.13259001,56878.0,56877.0,0.087895]
[1725933452084,0.13259001,56878.0,56877.0,1.215335]
[1725933452378,0.09846603,56878.0,56877.0,1.32995551]
[1725933452569,0.0008,56880.0,56877.0,1.57086052]
[1725933452878,0.0008,56880.0,56879.0,0.1608]
[1725933453075,0.0008,56880.0,56879.0,0.28475689]
[1725933453374,0.0008,56880.0,56879.0,0.81219689]
[1725933453575,0.0008,56880.0,56879.0,0.89998315]
[1725933453767,0.0008,56880.0,56879.0,0.776132]
[1725933454173,0.0008,56880.0,56879.0,1.38507655]
[1725933454371,0.0008,56880.0,56879.0,0.78507655]
[1725933454569,0.0008,56880.0,56879.0,0.25763655]
[1725933455371,0.0008,56880.0,56879.0,0.32785523]
[1725933455781,0.0008,56880.0,56879.0,0.32785455]
[1725933456079,0.0008,56880.0,56879.0,0.32785437]
[1725933456280,0.0018,56880.0,56879.0,0.26463655]
[1725933457274,0.0028,56880.0,56879.0,0.27063655]
[1725933457889,0.0028,56880.0,56879.0,0.31629993]
[1725933457890,0.0018,56880.0,56879.0,0.31629993]
[1725933458090,0.0028,56880.0,56879.0,0.27063655]
[1725933459091,0.0028,56880.0,56879.0,0.35852855]
[1725933459486,0.0028,56880.0,56879.0,1.48596855]
[1725933459686,0.10472291,56886.0,56885.0,0.175766]
[1725933459889,0.0041,56894.0,56887.0,0.16]
[1725933460083,0.10557449,56894.0,56893.0,0.16]
[1725933460286,0.10557449,56894.0,56893.0,0.1608]
[1725933460792,0.087863,56899.0,56897.0,0.087863]
[1725933460978,0.087863,56899.0,56893.0,0.1608]
[1725933461184,0.087858,56901.0,56900.0,0.08786]
[1725933461394,0.19343249,56901.0,56900.0,0.08866]
[1725933462389,0.16998211,56904.0,56901.0,0.087858]
[1725933462390,0.0321745,56902.0,56901.0,0.087858]
[1725933462594,0.10468211,56904.0,56903.0,0.087855]
[1725933462595,0.10557449,56904.0,56903.0,0.087855]
[1725933462792,0.10557449,56904.0,56903.0,0.088655]
[1725933462985,0.10557449,56904.0,56903.0,0.087855]
[1725933463889,0.10557449,56904.0,56903.0,0.088855]
[1725933463890,0.11057449,56904.0,56903.0,0.088855]
[1725933464788,0.11057449,56904.0,56903.0,0.248855]
[1725933464994,0.11057449,56904.0,56903.0,0.249855]
[1725933464995,0.12257449,56904.0,56903.0,0.249855]
[1725933467685,0.09485176,56904.0,56903.0,0.86491]
[1725933467994,0.09485176,56904.0,56903.0,0.249855]
[1725933468190,0.19089884,56904.0,56903.0,0.25875394]